bitfinex-derivatives/quotes_SOLF0:USTF0_20250124
["timestamp","ask_amount","ask_price","bid_price","bid_amount"]
[1737682204803,3.9583,252.67,252.54,1.3073]
[1737682205196,1.3597,252.7,252.54,1.3073]
[1737682205403,1.3597,252.7,252.58,3.9595]
[1737682205596,1.3597,252.7,252.59,0.02999602]
[1737682206101,3.9585,252.65,252.59,0.02999602]
[1737682206502,1.3597,252.7,252.59,0.02999602]
[1737682207699,1.1662,252.76,252.59,0.02999602]
[1737682207893,8.02849545,252.81,252.57,15.65031675]
[1737682208095,8.02849545,252.81,252.65,0.02918567]
[1737682208296,3.9564,252.79,252.7,3.9577]
[1737682208495,5.36419545,252.81,252.7,0.02672713]
[1737682209002,5.36419545,252.81,252.74,3.957]
[1737682209202,5.36419545,252.81,252.7,0.02672713]
[1737682209502,5.36419545,252.81,252.75,3.9569]
[1737682209702,5.36419545,252.81,252.66,2.5523]
[1737682209906,5.36419545,252.81,252.75,0.02901126]
[1737682210604,3.9567,252.77,252.75,0.02901126]
[1737682210805,5.36419545,252.81,252.62,1.2428]
[1737682211003,8.44999972,252.84,252.62,1.2428]
[1737682211203,3.9573,252.73,252.65,3.9585]
[1737682211903,0.02901126,252.72,252.66,0.02917578]
[1737682212107,8.44999972,252.84,252.65,15.65031675]
[1737682212297,0.0255213,252.72,252.67,3.958]
[1737682212498,0.0255213,252.72,252.66,0.02952988]
[1737682212698,15.65031675,252.82,252.62,1.2428]
[1737682213005,3.98582001,252.72,252.66,0.02826888]
[1737682213400,3.98582001,252.72,252.65,3.9584]
[1737682213605,3.98582001,252.72,252.66,0.02846704]
[1737682214105,3.9576,252.71,252.66,0.02846704]
[1737682214701,3.9577,252.7,252.66,0.02846704]
[1737682216413,0.02842001,252.72,252.66,0.02846704]
[1737682216614,3.98592001,252.72,252.66,0.02846704]
[1737682217818,0.02842001,252.72,252.66,0.02846704]
[1737682220011,3.9582,252.67,252.66,0.02846704]
[1737682222312,3.959,252.62,252.51,15.65031675]
[1737682222508,15.65031675,252.72,252.49,3.9065]
[1737682222907,3.9585,252.66,252.49,3.9065]
[1737682223114,15.65031675,252.72,252.55,3.96]
[1737682223318,15.65031675,252.72,252.49,3.9065]
[1737682223611,0.02567971,252.66,252.61,0.03019232]
[1737682224514,3.9588,252.63,252.61,0.03019232]
[1737682225116,0.02567971,252.66,252.61,0.03019232]
[1737682226213,3.9586,252.65,252.61,0.03019232]
[1737682226612,0.02567971,252.66,252.61,0.03019232]
[1737682227813,3.9586,252.65,252.61,0.03019232]
[1737682228014,0.02567971,252.66,252.61,0.03019232]
[1737682228418,0.02567971,252.66,252.65,3.9585]
[1737682231618,15.65031675,252.8,252.61,15.68050907]
[1737682231823,3.9569,252.76,252.69,3.9579]
[1737682232020,8.44999972,252.84,252.62,3.9181]
[1737682232718,8.44999972,252.84,252.66,15.65031675]
[1737682232920,0.02722798,252.76,252.74,3.957]
[1737682233116,3.9558,252.82,252.74,3.957]
[1737682233327,0.02782143,252.78,252.74,3.957]
[1737682233720,0.02782143,252.78,252.72,0.02967168]
[1737682235429,0.02782143,252.78,252.72,3.98697168]
[1737682235729,0.02782143,252.78,252.72,0.02967168]
[1737682235931,0.02782143,252.78,252.73,3.9572]
[1737682236430,0.02782143,252.78,252.72,0.02967168]
[1737682236631,0.02782143,252.78,252.74,3.957]
[1737682237032,0.02782143,252.78,252.72,0.02967168]
[1737682237430,3.9567,252.77,252.72,0.02967168]
[1737682237624,0.02782143,252.78,252.72,0.02967168]
[1737682239638,3.9568,252.76,252.72,0.02967168]
[1737682239931,0.02782143,252.78,252.72,0.02967168]
[1737682240329,3.9572,252.74,252.72,0.02967168]
[1737682240533,9.79780819,252.78,252.72,0.02967168]
[1737682241934,9.76998676,252.74,252.57,9.76998676]
[1737682242632,3.9585,252.65,252.57,9.76998676]
[1737682243135,0.02830022,252.64,252.58,0.02634085]
[1737682244635,3.98700022,252.64,252.58,0.02634085]
[1737682244837,0.02830022,252.64,252.58,0.02634085]
[1737682245741,3.959,252.62,252.58,0.02634085]
[1737682246038,0.02830022,252.64,252.45,9.76998676]
[1737682246039,9.76998676,252.61,252.45,9.76998676]
[1737682246240,3.9613,252.48,252.43,2.6029]
[1737682246639,9.76998676,252.57,252.43,2.6029]
[1737682246934,9.76998676,252.49,252.37,137.26854353]
[1737682247134,9.76998676,252.45,252.37,137.26854353]
[1737682247438,13.73228676,252.41,252.39,103.507625]
[1737682247640,3.9623,252.41,252.39,103.53558082]
[1737682247935,3.9623,252.41,252.39,102.39418082]
[1737682248142,3.9623,252.41,252.37,137.26854353]
[1737682248143,27.5702393,252.45,252.22,15.6802393]
[1737682248444,3.9641,252.3,252.21,200.04983292]
[1737682248631,15.6802393,252.37,252.21,200.04983292]
[1737682249442,0.03012149,252.32,252.26,0.02920909]
[1737682249741,3.9639,252.31,252.26,0.02920909]
[1737682249941,0.03012149,252.32,252.26,0.02920909]
[1737682250240,3.9644,252.28,252.26,0.02920909]
[1737682250433,15.6802393,252.29,252.17,157.9122863]
[1737682250638,15.6802393,252.42,252.17,1.2827]
[1737682251238,3.9633,252.35,252.17,1.2827]
[1737682251438,15.6802393,252.42,252.17,1.2827]
[1737682251739,0.02720122,252.29,252.23,0.02880662]
[1737682251940,3.9637,252.32,252.19,1.2346]
[1737682252137,0.02661738,252.29,252.23,0.02838819]
[1737682252342,3.9645,252.27,252.23,0.02838819]
[1737682253542,3.9648,252.25,252.17,1.2827]
[1737682253843,15.6802393,252.34,252.17,1.2827]
[1737682254639,0.02694428,252.28,252.23,0.02967465]
[1737682257145,3.9648,252.25,252.23,0.02967465]
[1737682258239,15.6802393,252.24,252.1,1.2888]
[1737682258541,15.6802393,252.2,252.03,1.2584]
[1737682258946,3.9664,252.15,252.05,3.9679]
[1737682259448,0.02841017,252.13,252.1,3.9671]
[1737682259642,1.2413,252.27,252.06,15.6802393]
[1737682260745,0.02543951,252.19,252.14,0.02917121]
[1737682261647,0.02543951,252.19,252.17,3.9659]
[1737682262350,0.02543951,252.19,252.15,3.9662]
[1737682262549,0.02543951,252.19,252.14,0.02917121]
[1737682262852,3.9662,252.16,252.14,0.02917121]
[1737682263345,0.02543951,252.19,252.14,0.02917121]
[1737682264453,0.02543951,252.19,252.17,3.966]
[1737682265854,15.6802393,252.32,252.25,3.9647]
[1737682266046,15.6802393,252.32,252.16,1.334]
[1737682266754,15.6802393,252.32,252.25,3.9646]
[1737682267055,0.02614028,252.27,252.25,3.9646]
[1737682269557,0.02614028,252.27,252.21,0.03029407]
[1737682270659,3.99064028,252.27,252.21,0.03029407]
[1737682271055,0.02614028,252.27,252.21,0.03029407]
[1737682271258,3.9646,252.26,252.21,0.03029407]
[1737682271757,0.02614028,252.27,252.21,0.03029407]
[1737682272960,3.9646,252.26,252.21,3.99559407]
[1737682273353,0.02614028,252.27,252.21,0.03029407]
[1737682273551,0.02614028,252.27,252.25,3.9647]
[1737682274459,0.02614028,252.27,252.23,3.9649]
[1737682275054,0.02614028,252.27,252.23,3.965]
[1737682275260,0.02614028,252.27,252.21,0.03029407]
[1737682275560,0.02614028,252.27,252.15,2.4835]
[1737682275857,15.6802393,252.26,252.01,15.6802393]
[1737682276061,15.6802393,252.26,252.04,1.2577]
[1737682276062,15.6802393,252.22,252.04,1.2577]
[1737682276362,15.6802393,252.22,252.08,3.9673]
[1737682276855,3.99554443,252.16,252.1,0.02990925]
[1737682277464,3.9667,252.13,252.1,0.02990925]
[1737682277666,0.02934443,252.16,252.1,0.02990925]
[1737682277861,15.6802393,252.14,252.1,0.02990925]
[1737682278163,0.02934443,252.16,252.1,0.02990925]
[1737682279365,3.54,252.3,252.1,0.02990925]
[1737682279366,3.56,252.41,252.1,0.02990925]
[1737682279564,1.3242,252.34,252.08,15.6802393]
[1737682280359,3.9647,252.26,252.08,15.6802393]
[1737682280560,0.02981297,252.22,252.17,0.03024298]
[1737682281664,3.9658,252.19,252.17,0.03024298]
[1737682282867,3.9668,252.12,252.04,5.2256]
[1737682283970,3.967,252.11,252.04,1.2577]
[1737682284269,0.02936616,252.11,252.04,1.2577]
[1737682284470,0.02936616,252.11,252.05,0.02857295]
[1737682284670,3.99636616,252.11,252.05,0.02857295]
[1737682284863,0.02936616,252.11,252.05,0.02857295]
[1737682285263,3.9676,252.07,252.05,0.02857295]
[1737682286273,19.6478393,252.07,252.05,7.295e-05]
[1737682287273,3.9676,252.07,252.05,7.295e-05]
[1737682288376,15.6802393,252.07,251.95,1.3475]
[1737682288672,3.9687,252.01,251.95,1.3475]
[1737682288871,15.6802393,252.07,251.95,1.3475]
[1737682289070,3.9694,251.96,251.91,1.2963]
[1737682289265,15.6802393,252.03,251.91,1.2963]
[1737682289673,0.02588823,252.0,251.94,0.02987182]
[1737682289874,15.6802393,252.07,251.91,1.2963]
[1737682290169,0.02712212,252.0,251.96,3.9692]
[1737682290372,0.02712212,252.0,251.94,0.02996545]
[1737682291073,2.626,252.15,251.94,0.02996545]
[1737682291474,2.626,252.15,251.93,15.6802393]
[1737682291669,15.6802393,252.12,251.91,4.8963]
[1737682291869,15.6802393,252.08,251.91,1.2963]
[1737682292065,15.6802393,252.08,251.93,3.9697]
[1737682292272,0.02876427,252.02,251.97,0.02983403]
[1737682292466,15.6802393,252.04,251.91,1.2963]
[1737682292669,0.02938938,251.99,251.94,0.02619155]
[1737682293171,3.9693,251.96,251.94,0.02619155]
[1737682293371,19.6495393,251.96,251.94,0.02619155]
[1737682293771,3.97,251.92,251.84,3.9712]
[1737682294369,15.6802393,251.96,251.78,2.6181]
[1737682294577,15.6802393,252.0,251.78,2.6181]
[1737682294777,2.6281,252.03,251.78,2.6181]
[1737682294974,0.02586086,251.92,251.86,0.0298976]
[1737682295274,0.02586086,251.92,251.78,2.6181]
[1737682295275,0.02586086,251.92,251.9,3.9702]
[1737682295967,3.9687,252.01,251.93,3.9697]
[1737682296167,15.6802393,252.04,251.81,15.6802393]
[1737682296767,3.9684,252.02,251.95,3.9694]
[1737682296968,3.9684,252.02,251.79,194.2397]
[1737682297274,0.02928565,252.01,251.96,0.02920163]
[1737682297467,15.6802393,252.07,251.96,0.02625045]
[1737682297667,0.02748946,252.01,251.96,0.02625045]
[1737682298576,3.9689,251.99,251.96,0.02625045]
[1737682298777,0.02748946,252.01,251.96,0.02625045]
[1737682301281,3.9688,252.0,251.96,0.02625045]
[1737682301479,0.02748946,252.01,251.96,0.02625045]
[1737682302281,3.969,251.98,251.96,0.02625045]
[1737682303580,3.9688,252.0,251.96,0.02625045]
[1737682303978,0.02748946,252.01,251.96,0.02625045]
[1737682304174,3.9689,251.99,251.96,0.02625045]
[1737682304980,3.99608946,252.01,251.96,0.02625045]
[1737682306084,0.02748946,252.01,251.96,0.02625045]
[1737682306584,3.99608946,252.01,251.96,0.02625045]
[1737682307581,0.02748946,252.01,251.96,0.02625045]
[1737682307782,0.02748946,252.01,252.0,3.9687]
[1737682307987,1.3073,252.11,251.97,1.3415]
[1737682308682,15.6802393,252.12,251.97,1.3415]
[1737682309092,0.02513022,252.07,252.02,0.02925375]
[1737682309890,0.02513022,252.07,252.04,3.968]
[1737682310286,0.02513022,252.07,252.05,3.9679]
[1737682310589,15.6802393,252.17,252.03,1.3656]
[1737682310785,17.0369393,252.21,252.03,2.6969]
[1737682311686,0.02741417,252.15,252.09,0.02943816]
[1737682312385,0.02741417,252.15,252.11,3.9669]
[1737682312784,0.02741417,252.15,252.09,0.02943816]
[1737682313093,3.99381417,252.15,252.09,0.02943816]
[1737682314196,3.9665,252.14,252.09,0.02943816]
[1737682314496,0.02741417,252.15,252.09,0.02943816]
[1737682314795,0.02741417,252.15,252.11,3.9669]
[1737682315492,7.9236,252.44,252.09,0.02943816]
[1737682315697,1.442,252.37,252.04,15.6802393]
[1737682315996,1.442,252.37,252.03,2.6969]
[1737682315997,15.6802393,252.29,252.08,15.6802393]
[1737682316297,3.9646,252.26,252.08,15.6802393]
[1737682316491,3.9646,252.26,252.2,3.9654]
[1737682316694,17.1222393,252.37,252.16,15.6802393]
[1737682316893,3.9637,252.32,252.25,3.9646]
[1737682317095,3.9637,252.32,252.17,2.5542]
[1737682317392,15.6802393,252.37,252.17,2.5542]
[1737682317898,0.02617874,252.3,252.24,0.02630649]
[1737682319704,3.9647,252.26,252.24,0.02630649]
[1737682320698,0.02617874,252.3,252.24,0.02630649]
[1737682321002,0.02617874,252.3,252.28,3.9643]
[1737682321203,0.02617874,252.3,252.24,0.02630649]
[1737682321902,3.963,252.37,252.3,3.9639]
[1737682322596,17.0387393,252.41,252.3,3.9639]
[1737682322999,0.03008041,252.38,252.33,0.0273402]
[1737682324900,3.9629,252.37,252.33,0.0273402]
[1737682325101,0.03008041,252.38,252.33,0.0273402]
[1737682325695,3.9632,252.35,252.33,0.0273402]
[1737682325901,3.9632,252.35,252.33,4.02e-05]
[1737682326302,15.6802393,252.36,252.21,1.2333]
[1737682326502,0.03008041,252.38,252.21,1.2333]
[1737682326803,3.9629,252.38,252.29,3.964]
[1737682327000,1.3133,252.4,252.29,3.964]
[1737682327209,1.3133,252.4,252.21,1.2333]
[1737682327399,3.9636,252.33,252.32,0.02749604]
[1737682327606,15.6802393,252.36,252.21,1.2333]
[1737682327800,15.6802393,252.32,252.17,2.5542]
[1737682328000,15.6802393,252.24,252.12,1.2863]
[1737682328206,15.6802393,252.2,252.12,1.2863]
[1737682328498,15.6802393,252.2,252.03,1.2609]
[1737682328703,15.6802393,252.2,252.04,1.2863]
[1737682328898,0.02759714,252.14,252.09,0.02776007]
[1737682329298,3.9669,252.12,252.09,0.02776007]
[1737682329497,0.02759714,252.14,252.09,0.02776007]
[1737682329701,3.9675,252.08,251.96,5.2078]
[1737682329898,15.6802393,252.1,251.96,1.2386]
[1737682330099,15.6802393,252.06,251.96,1.2386]
[1737682330930,0.02697803,252.04,251.98,0.02672411]
[1737682332508,0.02697803,252.04,252.0,3.9686]
[1737682334307,0.02697803,252.04,252.02,3.9683]
[1737682334911,3.9661,252.17,252.07,3.9675]
[1737682335114,1.2492,252.19,251.97,1.3687]
[1737682335716,3.966,252.18,252.08,3.9673]
[1737682335907,0.02516209,252.11,252.08,3.9673]
[1737682336817,0.02516209,252.11,252.09,3.9672]
[1737682337220,15.6802393,252.25,252.07,0.02610718]
[1737682337619,15.6802393,252.21,251.99,15.6802393]
[1737682337819,15.6802393,252.21,252.15,3.9662]
[1737682338019,15.6802393,252.25,252.03,15.6802393]
[1737682338425,0.02569144,252.17,252.11,0.02818835]
[1737682338818,0.02569144,252.17,252.12,3.9667]
[1737682339018,0.02569144,252.17,252.11,0.02818835]
[1737682340812,0.02569144,252.17,252.15,3.9662]
[1737682341216,15.6802393,252.3,252.13,1.3675]
[1737682341620,19.6443393,252.3,252.13,1.3675]
[1737682341821,15.6802393,252.3,252.13,1.3675]
[1737682342021,3.9648,252.25,252.19,3.9657]
[1737682342223,0.02538025,252.24,252.19,0.027181]
[1737682342928,0.02538025,252.24,252.22,3.9652]
[1737682343326,19.6434393,252.35,252.29,3.964]
[1737682343521,2.6284,252.38,252.19,0.027181]
[1737682343727,15.6802393,252.36,252.14,19.3802393]
[1737682343931,3.9646,252.26,252.2,3.9655]
[1737682344328,3.9646,252.26,252.14,3.7]
[1737682344522,3.9901421,252.26,252.2,0.02550167]
[1737682344726,0.0255421,252.26,252.2,3.99100167]
[1737682345225,3.9901421,252.26,252.2,3.99100167]
[1737682346430,0.0255421,252.26,252.2,0.02550167]
[1737682347324,0.0255421,252.26,252.24,3.9649]
[1737682347525,0.0255421,252.26,252.2,0.02550167]
[1737682348024,1.3537,252.38,252.2,0.02550167]
[1737682348429,1.3537,252.38,252.18,15.6802393]
[1737682349229,3.9634,252.34,252.25,0.02865944]
[1737682349832,3.9635,252.33,252.28,3.9642]
[1737682350330,3.9635,252.33,252.28,3.99109798]
[1737682351826,3.9641,252.3,252.28,0.02689798]
[1737682352029,15.6802393,252.29,252.15,1.2885]
[1737682352432,3.9651,252.24,252.18,3.9659]
[1737682352629,15.6802393,252.29,252.15,1.2885]
[1737682353027,3.9648,252.25,252.16,3.9661]
[1737682353334,0.02689798,252.25,252.19,0.02795371]
[1737682353731,0.02689798,252.25,252.19,3.99355371]
[1737682353933,0.02689798,252.25,252.19,0.02795371]
[1737682356425,0.02689798,252.25,252.23,3.965]
[1737682358538,0.02689798,252.25,252.19,0.02795371]
[1737682358836,0.02689798,252.25,252.24,3.9649]
[1737682359330,3.99169798,252.25,252.2,3.9654]
[1737682359533,0.02689798,252.25,252.19,0.02795371]
[1737682360134,3.9656,252.2,252.19,0.02795371]
[1737682360335,3.9656,252.2,252.19,0.00038015]
[1737682361329,16.9541393,252.24,252.05,1.3447]
[1737682361532,3.9667,252.13,252.01,1.2331]
[1737682361733,16.9541393,252.24,252.01,1.2331]
[1737682361734,15.6802393,252.19,252.05,3.9678]
[1737682361934,15.6802393,252.19,252.01,1.2331]
[1737682362239,15.6802393,252.15,252.01,1.2331]
[1737682362641,0.02941238,252.11,252.05,0.02562337]
[1737682362836,3.9673,252.1,252.05,0.02562337]
[1737682363041,0.02941238,252.11,252.05,0.02562337]
[1737682363741,0.02941238,252.11,252.06,3.9676]
[1737682363938,0.02941238,252.11,252.05,0.02562337]
[1737682364732,0.02941238,252.11,252.05,3.99342337]
[1737682365834,0.02941238,252.11,252.05,0.02562337]
[1737682366039,15.6802393,252.07,251.93,1.2442]
[1737682366535,3.9689,251.99,251.93,1.2442]
[1737682367333,3.99918187,251.99,251.93,1.27468002]
[1737682367640,0.03028187,251.99,251.93,1.27468002]
[1737682368735,0.03028187,251.99,251.97,3.9691]
[1737682368937,1.2888,252.1,251.93,1.27468002]
[1737682369134,1.2888,252.1,251.93,1.2442]
[1737682369740,3.9677,252.07,251.93,1.2442]
[1737682369940,0.02891445,252.03,251.97,0.02956327]
[1737682372744,0.02891445,252.03,251.97,3.99866327]
[1737682372945,0.02891445,252.03,251.97,0.02956327]
[1737682374245,0.02891445,252.03,251.98,3.969]
[1737682374649,0.02891445,252.03,251.99,3.9688]
[1737682374844,0.02891445,252.03,251.97,0.02956327]
[1737682375245,15.6802393,252.01,251.87,1.2625]
[1737682375549,15.6802393,252.01,251.84,2.5865]
[1737682375750,15.6802393,251.97,251.84,1.2899]
[1737682376350,1.3175,251.96,251.84,1.2899]
[1737682376553,0.02834252,251.93,251.88,0.02664856]
[1737682376855,3.99824252,251.93,251.88,0.02664856]
[1737682377651,0.02834252,251.93,251.88,0.02664856]
[1737682380750,0.02834252,251.93,251.91,3.9701]
[1737682382344,0.02834252,251.93,251.88,3.99704856]
[1737682382650,0.02834252,251.93,251.88,0.02664856]
[1737682383654,3.99814252,251.93,251.88,0.02664856]
[1737682385553,0.02834252,251.93,251.88,0.02664856]
[1737682387745,0.02834252,251.93,251.92,3.97]
[1737682388254,0.02834252,251.93,251.88,0.02664856]
[1737682388645,15.6802393,251.9,251.73,2.6713]
[1737682389955,0.02668815,251.84,251.79,0.02965493]
[1737682390655,3.9722,251.79,251.7,3.9733]
[1737682390855,15.6802393,251.82,251.65,2.6243]
[1737682391354,3.9723,251.78,251.68,3.9737]
[1737682391556,15.6802393,251.82,251.65,2.6243]
[1737682391756,0.03032307,251.76,251.7,0.02512924]
[1737682392154,0.03032307,251.76,251.71,3.9732]
[1737682392356,0.03032307,251.76,251.7,0.02512924]
[1737682393455,4.00282307,251.76,251.7,0.02512924]
[1737682393853,15.6802393,251.74,251.7,0.02512924]
[1737682394049,15.6802393,251.74,251.6,1.2842]
[1737682394050,15.6802393,251.74,251.5,3.8855]
[1737682394258,15.6802393,251.68,251.5,3.8855]
[1737682394457,3.9747,251.62,251.55,3.9757]
[1737682395359,15.6802393,251.78,251.56,0.03019519]
[1737682395858,15.6802393,251.7,251.5,3.8855]
[1737682396058,15.6802393,251.66,251.5,3.8855]
[1737682396259,3.9749,251.61,251.53,3.976]
[1737682396455,15.6802393,251.66,251.5,2.6291]
[1737682396757,0.02738297,251.6,251.54,0.0271469]
[1737682396958,0.02738297,251.6,251.56,3.9756]
[1737682397354,0.02738297,251.6,251.54,0.0271469]
[1737682397552,3.9757,251.56,251.54,0.0271469]
[1737682397954,15.6802393,251.58,251.54,0.0271469]
[1737682398157,4.00238297,251.6,251.54,0.0271469]
[1737682398558,0.02738297,251.6,251.55,3.9757]
[1737682398757,0.02738297,251.6,251.54,0.0271469]
[1737682399661,0.02738297,251.6,251.58,3.9752]
[1737682399857,15.6802393,251.74,251.55,2.5883]
[1737682400059,1.3379,251.76,251.56,1.3143]
[1737682400259,3.9734,251.71,251.65,3.9742]
[1737682400459,15.6802393,251.73,251.56,1.3143]
[1737682401158,0.02645271,251.67,251.62,0.02758942]
[1737682402459,0.02645271,251.67,251.63,3.9745]
[1737682402860,0.02645271,251.67,251.62,0.02758942]
[1737682403062,15.6802393,251.65,251.43,307.6802393]
[1737682403363,15.6802393,251.6,251.45,3.9353]
[1737682403663,3.9758,251.55,251.45,3.9353]
[1737682403863,15.6802393,251.68,251.45,3.9353]
[1737682404161,15.6802393,251.68,251.48,15.6802393]
[1737682404361,15.6802393,251.68,251.54,0.02670496]
[1737682404362,0.02798307,251.59,251.54,0.02670496]
[1737682404761,0.02798307,251.59,251.54,4.00260496]
[1737682404962,0.02798307,251.59,251.54,0.02670496]
[1737682405162,0.02798307,251.59,251.56,3.9756]
[1737682405757,0.02798307,251.59,251.54,0.02670496]
[1737682405955,0.02798307,251.59,251.57,3.9754]
[1737682408063,15.6802393,251.73,251.54,0.02670496]
[1737682408262,15.6802393,251.73,251.48,15.6802393]
[1737682408562,3.9735,251.7,251.48,19.5002393]
[1737682409059,0.02731509,251.62,251.57,3.9754]
[1737682409259,0.02731509,251.62,251.56,0.02914202]
[1737682409759,15.6802393,251.78,251.56,0.02914202]
[1737682409960,15.6802393,251.83,251.58,15.6802393]
[1737682410163,15.6802393,251.83,251.59,1.2346]
[1737682410362,15.6802393,251.83,251.78,3.9721]
[1737682410555,15.6802393,251.83,251.63,15.6802393]
[1737682411163,0.02909212,251.76,251.7,0.02709049]
[1737682411559,20.9364393,251.88,251.8,3.9718]
[1737682411964,0.03020935,251.87,251.8,3.9718]
[1737682412165,0.03020935,251.87,251.81,0.02629095]
[1737682412664,0.03020935,251.87,251.85,3.971]
[1737682414856,0.03020935,251.87,251.81,0.02629095]
[1737682415058,0.03020935,251.87,251.83,3.9714]
[1737682415456,0.03020935,251.87,251.81,3.99789095]
[1737682415660,0.03020935,251.87,251.81,0.02629095]
[1737682416566,0.03020935,251.87,251.83,3.9713]
[1737682416765,0.03020935,251.87,251.81,0.02629095]
[1737682416958,0.03020935,251.87,251.85,3.971]
[1737682418962,1.3225,252.0,251.81,0.02629095]
[1737682419163,15.6802393,252.02,251.8,15.6802393]
[1737682419372,19.6487393,252.02,251.95,3.9694]
[1737682419766,15.6802393,252.02,251.8,15.6802393]
[1737682419970,1.3384,252.05,251.8,208.6802393]
[1737682420169,15.6802393,252.06,251.88,0.02889498]
[1737682420370,15.6802393,252.06,251.85,1.2676]
[1737682420770,3.9681,252.04,251.98,3.9689]
[1737682421167,15.6802393,252.06,251.85,1.2676]
[1737682421367,3.9683,252.03,251.98,0.02862534]
[1737682421769,0.02262813,252.03,251.98,0.02862534]
[1737682422574,0.02262813,252.03,251.99,3.9688]
[1737682422873,0.02262813,252.03,251.98,0.02862534]
[1737682423066,0.02262813,252.03,251.98,3.99762534]
[1737682423272,0.02262813,252.03,251.98,0.02862534]
[1737682423869,3.99092813,252.03,251.98,0.02862534]
[1737682424069,0.02262813,252.03,251.98,0.02862534]
[1737682424577,3.9688,252.0,251.98,0.02862534]
[1737682425470,3.9684,252.02,251.98,0.02862534]
[1737682426077,0.02262813,252.03,251.98,0.02862534]
[1737682427673,0.02262813,252.03,251.98,3.99752534]
[1737682427875,0.02262813,252.03,251.98,0.02862534]
[1737682428273,3.99082813,252.03,251.98,0.02862534]
[1737682428471,0.02262813,252.03,251.98,0.02862534]
[1737682429573,0.02262813,252.03,252.01,3.9685]
[1737682429776,0.02262813,252.03,251.98,0.02862534]
[1737682430177,0.02262813,252.03,252.02,3.9684]
[1737682431282,0.02262813,252.03,251.99,1.3584]
[1737682431581,0.02262813,252.03,251.98,0.02862534]
[1737682432082,0.02262813,252.03,252.01,3.9684]
[1737682434183,0.02262813,252.03,251.99,1.3011]
[1737682434386,0.02262813,252.03,252.02,3.9684]
[1737682434684,15.6802393,252.24,252.02,15.6802393]
[1737682435085,15.6802393,252.28,252.02,15.6802393]
[1737682435386,15.6802393,252.2,252.0,1.2338]
[1737682435686,15.6802393,252.2,252.07,0.02676155]
[1737682435881,15.6802393,252.16,252.07,0.02676155]
[1737682436080,15.6802393,252.16,252.0,1.2338]
[1737682436276,15.6802393,252.16,252.09,0.02810972]
[1737682436681,3.9671,252.1,252.09,9.72e-06]
[1737682436982,3.9671,252.1,252.0,1.2338]
[1737682436983,15.6802393,252.12,252.0,1.2338]
[1737682437182,3.9678,252.06,252.0,5.2025]
[1737682437387,15.6802393,252.12,252.0,1.2338]
[1737682437684,3.9674,252.09,252.01,3.9685]
[1737682437885,3.9674,252.09,251.95,1.3444]
[1737682438081,0.02780897,252.09,252.03,0.02669268]
[1737682439587,0.02780897,252.09,252.04,3.9679]
[1737682439780,0.02780897,252.09,252.03,0.02669268]
[1737682440586,15.70804827,252.09,252.03,9.268e-05]
[1737682440789,15.6802393,252.05,251.88,3.9705]
[1737682440986,15.6802393,252.01,251.84,2.6246]
[1737682441685,15.6802393,252.05,251.84,2.6246]
[1737682441893,0.02968147,251.95,251.9,0.02541402]
[1737682442079,0.02968147,251.95,251.94,3.9696]
[1737682442285,3.9682,252.04,251.9,0.02541402]
[1737682442489,3.9682,252.04,251.97,3.9691]
[1737682442994,1.3467,252.07,251.84,2.6246]
[1737682443382,0.02512093,251.98,251.93,0.02555105]
[1737682443690,0.02512093,251.98,251.97,3.9692]
[1737682445187,15.6802393,252.09,251.93,0.02555105]
[1737682445490,2.5987,252.15,251.91,15.6802393]
[1737682446091,15.6802393,252.1,251.91,15.6802393]
[1737682446491,15.6802393,252.1,252.0,3.9687]
[1737682446692,3.9686,252.01,251.98,0.02658103]
[1737682447391,15.6802393,252.05,251.98,0.02658103]
[1737682447593,15.6802393,252.0,251.84,2.6246]
[1737682448287,15.6802393,251.95,251.75,108.23183919]
[1737682448791,0.02525713,251.88,251.82,0.03025791]
[1737682449187,15.6802393,251.85,251.82,5.791e-05]
[1737682450093,0.02525713,251.88,251.82,5.791e-05]
[1737682451388,15.6802393,251.86,251.82,5.791e-05]
[1737682451792,0.02525713,251.88,251.82,5.791e-05]
[1737682452896,3.99585713,251.88,251.82,5.791e-05]
[1737682453191,0.02525713,251.88,251.82,5.791e-05]
[1737682456396,0.02525713,251.88,251.86,3.9709]
[1737682456591,25.59094736,251.99,251.83,2.5807]
[1737682457296,3.9692,251.97,251.83,2.5807]
[1737682457498,25.59094736,251.94,251.83,1.2349]
[1737682457794,0.0263727,251.93,251.87,0.02968132]
[1737682458497,3.9701,251.92,251.87,0.02968132]
[1737682458698,0.0263727,251.93,251.87,0.02968132]